[Event "*** SCC Grand Prix: Titled Tuesday Blitz"]
[Site "Chess.com"]
[Date "2020.10.13"]
[Round "8"]
[White "Colombiano07"]
[Black "Das_Virus_2020"]
[Result "0-1"]
[WhiteElo "2249"]
[BlackElo "2403"]
[TimeControl "180+1"]
[EndTime "11:30:58 PDT"]
[Termination "Das_Virus_2020 won by resignation"]

1. d4 {[%clk 0:03:00.9]} 1... Nf6 {[%clk 0:02:59.4]} 2. Nc3 {[%clk 0:03:00.7]}
2... e6 {[%clk 0:02:57.2]} 3. e4 {[%clk 0:03:00.7]} 3... d5 {[%clk 0:02:56.8]}
4. e5 {[%clk 0:02:59.8]} 4... Nfd7 {[%clk 0:02:56.9]} 5. f4 {[%clk 0:02:59.4]}
5... c5 {[%clk 0:02:57.3]} 6. Nce2 {[%clk 0:02:59.7]} 6... Nc6 {[%clk
0:02:55.3]} 7. c3 {[%clk 0:02:59.7]} 7... Qb6 {[%clk 0:02:46.2]} 8. Nf3 {[%clk
0:02:59.8]} 8... a5 {[%clk 0:02:45.6]} 9. Qb3 {[%clk 0:02:58]} 9... a4 {[%clk
0:02:43.8]} 10. Qxb6 {[%clk 0:02:57.8]} 10... Nxb6 {[%clk 0:02:44.7]} 11. Be3
{[%clk 0:02:56.7]} 11... Nc4 {[%clk 0:02:43.5]} 12. Bc1 {[%clk 0:02:53.4]} 12...
Bd7 {[%clk 0:02:41.9]} 13. Rb1 {[%clk 0:02:52.8]} 13... cxd4 {[%clk 0:02:27.1]}
14. cxd4 {[%clk 0:02:42.8]} 14... Bb4+ {[%clk 0:02:19.8]} 15. Kf2 {[%clk
0:02:38]} 15... O-O {[%clk 0:02:19.1]} 16. a3 {[%clk 0:02:37.6]} 16... Be7
{[%clk 0:02:17.3]} 17. Nc3 {[%clk 0:02:37.1]} 17... N6a5 {[%clk 0:02:16.8]} 18.
Bd3 {[%clk 0:02:29.3]} 18... Rfc8 {[%clk 0:02:07.3]} 19. Be3 {[%clk 0:02:27.1]}
19... Nxe3 {[%clk 0:02:01.1]} 20. Kxe3 {[%clk 0:02:26.9]} 20... Nc4+ {[%clk
0:02:00.7]} 21. Bxc4 {[%clk 0:02:27.5]} 21... Rxc4 {[%clk 0:01:59.8]} 22. Rhc1
{[%clk 0:02:26.7]} 22... Rac8 {[%clk 0:01:58.8]} 23. Nd2 {[%clk 0:02:24.2]}
23... R4c7 {[%clk 0:01:55.9]} 24. Ne2 {[%clk 0:02:07.7]} 24... b5 {[%clk
0:01:53.6]} 25. Rxc7 {[%clk 0:02:06.7]} 25... Rxc7 {[%clk 0:01:54.5]} 26. Rc1
{[%clk 0:02:07.3]} 26... Rxc1 {[%clk 0:01:54.1]} 27. Nxc1 {[%clk 0:02:08.2]}
27... b4 {[%clk 0:01:54.6]} 28. axb4 {[%clk 0:02:03.3]} 28... Bxb4 {[%clk
0:01:55.5]} 29. Na2 {[%clk 0:02:04]} 29... Ba5 {[%clk 0:01:52]} 30. Nc3 {[%clk
0:01:56.9]} 30... a3 {[%clk 0:01:47.3]} 31. Ndb1 {[%clk 0:01:51.3]} 31... axb2
{[%clk 0:01:44.2]} 32. Kd2 {[%clk 0:01:50.7]} 32... Bb6 {[%clk 0:01:38.9]} 33.
Ne2 {[%clk 0:01:25]} 33... Bb5 {[%clk 0:01:37.8]} 0-1

[Event "*** SCC Grand Prix: Titled Tuesday Blitz"]
[Site "Chess.com"]
[Date "2020.10.13"]
[Round "8"]
[White "PetrolulSah"]
[Black "zverr1"]
[Result "0-1"]
[WhiteElo "2154"]
[BlackElo "2401"]
[TimeControl "180+1"]
[EndTime "11:30:59 PDT"]
[Termination "zverr1 won by resignation"]

1. d4 {[%clk 0:03:00.9]} 1... Nf6 {[%clk 0:02:59.9]} 2. c4 {[%clk 0:02:59.8]}
2... g6 {[%clk 0:03:00.2]} 3. Nc3 {[%clk 0:02:56.5]} 3... Bg7 {[%clk 0:03:00.3]}
4. e4 {[%clk 0:02:54.9]} 4... O-O {[%clk 0:03:01.2]} 5. Be2 {[%clk 0:02:43]}
5... d6 {[%clk 0:03:01.3]} 6. Bg5 {[%clk 0:02:41]} 6... c5 {[%clk 0:02:59]} 7.
d5 {[%clk 0:02:39.2]} 7... h6 {[%clk 0:02:52.6]} 8. Bf4 {[%clk 0:02:35.7]} 8...
e6 {[%clk 0:02:52.7]} 9. dxe6 {[%clk 0:02:35.1]} 9... Bxe6 {[%clk 0:02:53.6]}
10. Bxd6 {[%clk 0:02:34.2]} 10... Re8 {[%clk 0:02:53.8]} 11. Nf3 {[%clk
0:02:32.5]} 11... Qa5 {[%clk 0:02:48.7]} 12. e5 {[%clk 0:02:25.4]} 12... Ne4
{[%clk 0:02:45.1]} 13. O-O {[%clk 0:02:15.4]} 13... Nxc3 {[%clk 0:02:41.5]} 14.
bxc3 {[%clk 0:02:03.5]} 14... Nc6 {[%clk 0:02:41.5]} 15. Qb3 {[%clk 0:01:52.7]}
15... Qa6 {[%clk 0:02:33.5]} 16. Qb5 {[%clk 0:01:49.7]} 16... Na5 {[%clk
0:02:18.8]} 17. Qxa6 {[%clk 0:01:46.3]} 17... bxa6 {[%clk 0:02:19.7]} 18. Bxc5
{[%clk 0:01:44.8]} 18... Bxc4 {[%clk 0:02:17.9]} 19. Rfe1 {[%clk 0:01:38.5]}
19... Bxe5 {[%clk 0:02:10.1]} 20. Bb4 {[%clk 0:01:28.7]} 20... Bxe2 {[%clk
0:02:06.4]} 21. Rxe2 {[%clk 0:01:17.7]} 21... Bc7 {[%clk 0:02:05.8]} 22. Rae1
{[%clk 0:01:10]} 22... Rxe2 {[%clk 0:02:02.7]} 23. Rxe2 {[%clk 0:01:10.9]} 23...
Nc6 {[%clk 0:02:02.2]} 24. h4 {[%clk 0:01:04.9]} 24... Nxb4 {[%clk 0:02:00.7]}
25. cxb4 {[%clk 0:01:04.1]} 25... Bd6 {[%clk 0:02:00.5]} 26. a3 {[%clk
0:01:03.2]} 26... Rc8 {[%clk 0:01:59.1]} 27. Nd4 {[%clk 0:00:56.2]} 27... Rc1+
{[%clk 0:01:56.7]} 0-1

[Event "*** SCC Grand Prix: Titled Tuesday Blitz"]
[Site "Chess.com"]
[Date "2020.10.13"]
[Round "8"]
[White "dosto07"]
[Black "szachuspl"]
[Result "1-0"]
[WhiteElo "2346"]
[BlackElo "2533"]
[TimeControl "180+1"]
[EndTime "11:31:02 PDT"]
[Termination "dosto07 won by resignation"]

1. e4 {[%clk 0:03:00.9]} 1... c5 {[%clk 0:02:52.7]} 2. Nf3 {[%clk 0:03:00.8]}
2... a6 {[%clk 0:02:51.8]} 3. c3 {[%clk 0:02:58.3]} 3... d5 {[%clk 0:02:48.4]}
4. exd5 {[%clk 0:02:56.9]} 4... Nf6 {[%clk 0:02:49]} 5. d4 {[%clk 0:02:56.7]}
5... cxd4 {[%clk 0:02:48.9]} 6. cxd4 {[%clk 0:02:56.1]} 6... Nxd5 {[%clk
0:02:48.9]} 7. Nc3 {[%clk 0:02:48.9]} 7... Bg4 {[%clk 0:02:48]} 8. h3 {[%clk
0:02:43.4]} 8... Bh5 {[%clk 0:02:44.8]} 9. Bc4 {[%clk 0:02:37.1]} 9... Nb6
{[%clk 0:02:42.6]} 10. Be2 {[%clk 0:02:33.1]} 10... e6 {[%clk 0:02:42.1]} 11.
O-O {[%clk 0:02:32.7]} 11... Be7 {[%clk 0:02:41.3]} 12. Be3 {[%clk 0:02:27.9]}
12... O-O {[%clk 0:02:40.9]} 13. g4 {[%clk 0:02:25.2]} 13... Bg6 {[%clk
0:02:40.8]} 14. Ne5 {[%clk 0:02:25.7]} 14... Nc6 {[%clk 0:02:37.8]} 15. f4
{[%clk 0:02:25.2]} 15... Nxe5 {[%clk 0:02:37]} 16. dxe5 {[%clk 0:02:22]} 16...
Qc8 {[%clk 0:02:19.4]} 17. Bxb6 {[%clk 0:02:13.2]} 17... Bc5+ {[%clk 0:02:17.5]}
18. Bxc5 {[%clk 0:02:13]} 18... Qxc5+ {[%clk 0:02:17.4]} 19. Kh2 {[%clk
0:02:11.5]} 19... Rad8 {[%clk 0:02:16.1]} 20. Qe1 {[%clk 0:02:11.4]} 20... h5
{[%clk 0:02:13.1]} 21. Rd1 {[%clk 0:02:03.1]} 21... Qb4 {[%clk 0:02:09.1]} 22.
gxh5 {[%clk 0:01:40.2]} 22... Bf5 {[%clk 0:02:07.1]} 23. Rd2 {[%clk 0:01:40.4]}
23... Rd4 {[%clk 0:02:02.8]} 24. Rxd4 {[%clk 0:01:38.1]} 24... Qxd4 {[%clk
0:02:03.7]} 25. Qf2 {[%clk 0:01:37.7]} 25... Qb4 {[%clk 0:01:58.8]} 26. Bg4
{[%clk 0:01:30.8]} 26... Bd3 {[%clk 0:01:59]} 27. Rd1 {[%clk 0:01:25.5]} 27...
Bh7 {[%clk 0:01:54.5]} 28. Rd4 {[%clk 0:01:19]} 28... Qb6 {[%clk 0:01:51.1]} 29.
h6 {[%clk 0:01:16.1]} 29... gxh6 {[%clk 0:01:48.8]} 30. f5 {[%clk 0:01:06.6]}
30... exf5 {[%clk 0:01:45.5]} 31. Bxf5 {[%clk 0:01:02.8]} 31... Bxf5 {[%clk
0:01:45.6]} 32. Rg4+ {[%clk 0:01:01.6]} 1-0

[Event "*** SCC Grand Prix: Titled Tuesday Blitz"]
[Site "Chess.com"]
[Date "2020.10.13"]
[Round "8"]
[White "LubovMarkelova"]
[Black "Slovak_fighter2000"]
[Result "0-1"]
[WhiteElo "2242"]
[BlackElo "2402"]
[TimeControl "180+1"]
[EndTime "11:31:08 PDT"]
[Termination "Slovak_fighter2000 won by resignation"]

1. Nf3 {[%clk 0:03:00.8]} 1... d5 {[%clk 0:02:58.7]} 2. d4 {[%clk 0:02:59.2]}
2... Nf6 {[%clk 0:02:57.7]} 3. c4 {[%clk 0:03:00.1]} 3... e6 {[%clk 0:02:55.5]}
4. e3 {[%clk 0:03:00.7]} 4... b6 {[%clk 0:02:45.5]} 5. Nc3 {[%clk 0:02:59.6]}
5... Bb7 {[%clk 0:02:45.1]} 6. b3 {[%clk 0:02:56.9]} 6... Nbd7 {[%clk
0:02:44.2]} 7. Bd3 {[%clk 0:02:56.3]} 7... Be7 {[%clk 0:02:42.8]} 8. Bb2 {[%clk
0:02:55.7]} 8... O-O {[%clk 0:02:41.3]} 9. cxd5 {[%clk 0:02:56]} 9... Nxd5
{[%clk 0:02:38.2]} 10. Nxd5 {[%clk 0:02:55.8]} 10... Bxd5 {[%clk 0:02:38]} 11.
O-O {[%clk 0:02:55.4]} 11... c5 {[%clk 0:02:37.5]} 12. e4 {[%clk 0:02:55.7]}
12... Bb7 {[%clk 0:02:35.8]} 13. Qe2 {[%clk 0:02:55.9]} 13... cxd4 {[%clk
0:02:29.8]} 14. Nxd4 {[%clk 0:02:55.6]} 14... Qb8 {[%clk 0:02:17.6]} 15. Rfd1
{[%clk 0:02:53.6]} 15... Nc5 {[%clk 0:02:15.1]} 16. Bc2 {[%clk 0:02:47.1]} 16...
Qf4 {[%clk 0:02:13.8]} 17. f3 {[%clk 0:02:21.2]} 17... Qh4 {[%clk 0:02:05.3]}
18. Rac1 {[%clk 0:02:17.1]} 18... Rfd8 {[%clk 0:02:00]} 19. Qf2 {[%clk
0:02:10.2]} 19... Qh6 {[%clk 0:01:55.4]} 20. Nb5 {[%clk 0:01:55.7]} 20... Bg5
{[%clk 0:01:53.3]} 21. Rxd8+ {[%clk 0:01:35.9]} 21... Rxd8 {[%clk 0:01:51.8]}
22. Re1 {[%clk 0:01:36]} 22... Rd2 {[%clk 0:01:49.5]} 23. Re2 {[%clk 0:01:36.4]}
23... Rxc2 {[%clk 0:01:41.1]} 24. Qg3 {[%clk 0:01:14.1]} 24... Bf4 {[%clk
0:01:28]} 0-1

[Event "*** SCC Grand Prix: Titled Tuesday Blitz"]
[Site "Chess.com"]
[Date "2020.10.13"]
[Round "8"]
[White "PlotnikovPavel"]
[Black "northridgehawk"]
[Result "1-0"]
[WhiteElo "2379"]
[BlackElo "2230"]
[TimeControl "180+1"]
[EndTime "11:31:15 PDT"]
[Termination "PlotnikovPavel won by resignation"]

1. e4 {[%clk 0:03:00.9]} 1... e5 {[%clk 0:02:59]} 2. Nf3 {[%clk 0:02:57.5]} 2...
Nc6 {[%clk 0:02:59.4]} 3. Bc4 {[%clk 0:02:57]} 3... Nf6 {[%clk 0:02:58.8]} 4. d3
{[%clk 0:02:54.8]} 4... Bc5 {[%clk 0:02:57.5]} 5. O-O {[%clk 0:02:55]} 5... d6
{[%clk 0:02:56.6]} 6. h3 {[%clk 0:02:55.3]} 6... a6 {[%clk 0:02:56.3]} 7. c3
{[%clk 0:02:55.9]} 7... Ba7 {[%clk 0:02:56.6]} 8. Bb3 {[%clk 0:02:56.6]} 8... h6
{[%clk 0:02:56.9]} 9. Nbd2 {[%clk 0:02:57.2]} 9... g5 {[%clk 0:02:57.4]} 10. Re1
{[%clk 0:02:57.9]} 10... g4 {[%clk 0:02:57.6]} 11. hxg4 {[%clk 0:02:54.8]} 11...
Bxg4 {[%clk 0:02:54]} 12. Nf1 {[%clk 0:02:53]} 12... Rg8 {[%clk 0:02:53.5]} 13.
Ng3 {[%clk 0:02:52.7]} 13... h5 {[%clk 0:02:52.9]} 14. d4 {[%clk 0:02:34.9]}
14... h4 {[%clk 0:02:49.2]} 15. Nf5 {[%clk 0:02:30.7]} 15... exd4 {[%clk
0:02:41.4]} 16. cxd4 {[%clk 0:02:24.3]} 16... h3 {[%clk 0:02:37.6]} 17. Nh6
{[%clk 0:02:14.7]} 17... Nxd4 {[%clk 0:02:27.3]} 18. Bxf7+ {[%clk 0:02:11.3]}
18... Kf8 {[%clk 0:02:24.4]} 19. Bxg8 {[%clk 0:02:09.8]} 19... hxg2 {[%clk
0:01:47.9]} 20. Nxg4 {[%clk 0:02:03.3]} 20... Nxg4 {[%clk 0:01:47.8]} 21. Nxd4
{[%clk 0:01:57.9]} 21... Qh4 {[%clk 0:01:47.3]} 22. Qf3+ {[%clk 0:01:57.3]}
22... Kxg8 {[%clk 0:01:43.8]} 23. Qxg2 {[%clk 0:01:56.9]} 23... Bxd4 {[%clk
0:01:41.3]} 24. Be3 {[%clk 0:01:57]} 24... Be5 {[%clk 0:01:39.8]} 25. f3 {[%clk
0:01:49.3]} 25... Bh2+ {[%clk 0:01:39.1]} 26. Kf1 {[%clk 0:01:46.2]} 26... Rf8
{[%clk 0:01:37.7]} 27. Ke2 {[%clk 0:01:43.8]} 27... Bg3 {[%clk 0:01:22.8]} 28.
Rh1 {[%clk 0:01:41]} 28... Nh2 {[%clk 0:01:04.1]} 29. Rag1 {[%clk 0:01:34.7]}
29... Rxf3 {[%clk 0:01:03.1]} 30. Rxh2 {[%clk 0:01:32.7]} 30... Rxe3+ {[%clk
0:01:01.5]} 31. Kxe3 {[%clk 0:01:32.2]} 31... Qf4+ {[%clk 0:01:01.3]} 32. Kd3
{[%clk 0:01:31.9]} 1-0

[Event "*** SCC Grand Prix: Titled Tuesday Blitz"]
[Site "Chess.com"]
[Date "2020.10.13"]
[Round "8"]
[White "Sn00pPawn"]
[Black "Margarita2907"]
[Result "0-1"]
[WhiteElo "1970"]
[BlackElo "2170"]
[TimeControl "180+1"]
[EndTime "11:31:31 PDT"]
[Termination "Margarita2907 won by resignation"]

1. e4 {[%clk 0:03:00.9]} 1... c5 {[%clk 0:02:59.5]} 2. Nf3 {[%clk 0:02:59]} 2...
d6 {[%clk 0:02:59.5]} 3. d4 {[%clk 0:02:54.2]} 3... cxd4 {[%clk 0:03:00.4]} 4.
Nxd4 {[%clk 0:02:53.9]} 4... Nf6 {[%clk 0:03:00.5]} 5. Nc3 {[%clk 0:02:54.2]}
5... a6 {[%clk 0:03:00.5]} 6. Bg5 {[%clk 0:02:54.7]} 6... Nbd7 {[%clk
0:02:59.5]} 7. f4 {[%clk 0:02:53.3]} 7... Qc7 {[%clk 0:02:59.3]} 8. Qe2 {[%clk
0:02:52.5]} 8... e6 {[%clk 0:02:49.7]} 9. O-O-O {[%clk 0:02:33]} 9... b5 {[%clk
0:02:47.5]} 10. Bxf6 {[%clk 0:01:46.4]} 10... Nxf6 {[%clk 0:02:44.1]} 11. e5
{[%clk 0:01:45]} 11... dxe5 {[%clk 0:02:33.6]} 12. fxe5 {[%clk 0:01:44.5]} 12...
Nd7 {[%clk 0:02:31.8]} 13. g3 {[%clk 0:00:38.5]} 13... Bb7 {[%clk 0:02:23.6]}
14. Bg2 {[%clk 0:00:37.2]} 14... Be7 {[%clk 0:02:19.9]} 15. Rhe1 {[%clk
0:00:19.6]} 15... O-O {[%clk 0:02:16.6]} 16. Bxb7 {[%clk 0:00:18.5]} 16... Qxb7
{[%clk 0:02:13.9]} 17. h4 {[%clk 0:00:16]} 17... b4 {[%clk 0:02:04.6]} 18. Ne4
{[%clk 0:00:15.1]} 18... Nxe5 {[%clk 0:02:03.3]} 19. Ng5 {[%clk 0:00:14.8]}
19... Bxg5+ {[%clk 0:02:01.2]} 20. hxg5 {[%clk 0:00:14.5]} 20... Ng6 {[%clk
0:01:59.9]} 21. Rh1 {[%clk 0:00:12.6]} 21... Rfd8 {[%clk 0:01:57.1]} 22. Qh5
{[%clk 0:00:12.1]} 22... Nf8 {[%clk 0:01:56.9]} 23. Rdf1 {[%clk 0:00:08.7]}
23... Rxd4 {[%clk 0:01:53]} 0-1

[Event "*** SCC Grand Prix: Titled Tuesday Blitz"]
[Site "Chess.com"]
[Date "2020.10.13"]
[Round "8"]
[White "As0nchess"]
[Black "wonderfultime"]
[Result "0-1"]
[WhiteElo "2621"]
[BlackElo "2908"]
[TimeControl "180+1"]
[EndTime "11:31:38 PDT"]
[Termination "wonderfultime won by resignation"]

1. e4 {[%clk 0:03:00]} 1... c5 {[%clk 0:02:58.3]} 2. Nf3 {[%clk 0:02:59.8]} 2...
Nf6 {[%clk 0:02:45.6]} 3. e5 {[%clk 0:02:59.6]} 3... Nd5 {[%clk 0:02:44.7]} 4.
d4 {[%clk 0:03:00.1]} 4... cxd4 {[%clk 0:02:43.9]} 5. Qxd4 {[%clk 0:03:01]} 5...
e6 {[%clk 0:02:44.4]} 6. a3 {[%clk 0:03:00.3]} 6... Nc6 {[%clk 0:02:42.8]} 7.
Qd1 {[%clk 0:03:00.6]} 7... Nde7 {[%clk 0:02:39.9]} 8. Bf4 {[%clk 0:02:47.9]}
8... Ng6 {[%clk 0:02:39.7]} 9. Bg3 {[%clk 0:02:48.1]} 9... Be7 {[%clk
0:02:26.4]} 10. Nc3 {[%clk 0:02:47.2]} 10... f6 {[%clk 0:02:25.2]} 11. exf6
{[%clk 0:02:41.1]} 11... Bxf6 {[%clk 0:02:26.1]} 12. Bd3 {[%clk 0:02:35.1]}
12... O-O {[%clk 0:02:24.8]} 13. Bxg6 {[%clk 0:02:32.4]} 13... hxg6 {[%clk
0:02:23.8]} 14. Qd3 {[%clk 0:02:32.7]} 14... Qa5 {[%clk 0:02:16.9]} 15. O-O
{[%clk 0:02:30.1]} 15... Qf5 {[%clk 0:02:15.6]} 16. Ne4 {[%clk 0:02:17]} 16...
Bxb2 {[%clk 0:02:02.2]} 17. Rab1 {[%clk 0:02:15.3]} 17... d5 {[%clk 0:02:01.2]}
18. Nd6 {[%clk 0:02:06.2]} 18... Qxd3 {[%clk 0:02:00.7]} 19. cxd3 {[%clk
0:02:07.1]} 19... Bxa3 {[%clk 0:02:01.6]} 20. Nxc8 {[%clk 0:02:07]} 20... Raxc8
{[%clk 0:02:02.5]} 21. Rxb7 {[%clk 0:02:07.5]} 21... Rf7 {[%clk 0:02:00.3]} 22.
Rxf7 {[%clk 0:02:03.6]} 22... Kxf7 {[%clk 0:01:59.6]} 23. Ng5+ {[%clk 0:02:03]}
23... Ke7 {[%clk 0:01:51.6]} 24. Re1 {[%clk 0:02:02.7]} 24... Nd8 {[%clk
0:01:50]} 25. Be5 {[%clk 0:01:59.3]} 25... Bb4 {[%clk 0:01:49.1]} 26. Ra1 {[%clk
0:01:58]} 26... a5 {[%clk 0:01:47.6]} 27. Bxg7 {[%clk 0:01:56.7]} 27... Bc3
{[%clk 0:01:40.1]} 28. Bxc3 {[%clk 0:01:56.2]} 28... Rxc3 {[%clk 0:01:41]} 29.
d4 {[%clk 0:01:51.3]} 29... Nc6 {[%clk 0:01:39.2]} 30. Nf3 {[%clk 0:01:51]}
30... a4 {[%clk 0:01:37.1]} 31. h4 {[%clk 0:01:50.3]} 31... a3 {[%clk
0:01:37.4]} 32. Kf1 {[%clk 0:01:42.1]} 32... Nb4 {[%clk 0:01:34.6]} 33. Ke2
{[%clk 0:01:36]} 33... a2 {[%clk 0:01:34.1]} 34. Ne1 {[%clk 0:01:22.6]} 34...
Rb3 {[%clk 0:01:30.5]} 35. Kd2 {[%clk 0:01:00.7]} 35... Rb1 {[%clk 0:01:30.3]}
36. Nc2 {[%clk 0:01:01.1]} 36... Nxc2 {[%clk 0:01:28.1]} 37. Rxa2 {[%clk
0:01:01.5]} 37... Nxd4 {[%clk 0:01:29]} 0-1

[Event "*** SCC Grand Prix: Titled Tuesday Blitz"]
[Site "Chess.com"]
[Date "2020.10.13"]
[Round "8"]
[White "Jumbo"]
[Black "VladimirBugayev"]
[Result "1-0"]
[WhiteElo "2752"]
[BlackElo "2345"]
[TimeControl "180+1"]
[EndTime "11:31:44 PDT"]
[Termination "Jumbo won on time"]

1. d4 {[%clk 0:03:00.9]} 1... d5 {[%clk 0:02:56]} 2. c4 {[%clk 0:03:01.8]} 2...
c6 {[%clk 0:02:55.5]} 3. Nf3 {[%clk 0:03:01.2]} 3... Nf6 {[%clk 0:02:56]} 4. Nc3
{[%clk 0:03:00.6]} 4... a6 {[%clk 0:02:56.6]} 5. a4 {[%clk 0:02:58.8]} 5... Bf5
{[%clk 0:02:50.8]} 6. a5 {[%clk 0:02:49.8]} 6... e6 {[%clk 0:02:48.2]} 7. Bg5
{[%clk 0:02:47.5]} 7... Nbd7 {[%clk 0:02:45.3]} 8. e3 {[%clk 0:02:47.5]} 8... h6
{[%clk 0:02:23.4]} 9. Bh4 {[%clk 0:02:47]} 9... Bb4 {[%clk 0:01:50.3]} 10. Qa4
{[%clk 0:02:43.7]} 10... Qe7 {[%clk 0:01:28.7]} 11. Be2 {[%clk 0:02:39.6]} 11...
O-O {[%clk 0:01:13.2]} 12. O-O {[%clk 0:02:34]} 12... Bxc3 {[%clk 0:01:12.4]}
13. bxc3 {[%clk 0:02:32.1]} 13... g5 {[%clk 0:01:13]} 14. Bg3 {[%clk 0:02:31.2]}
14... Ne4 {[%clk 0:01:13.3]} 15. Rfc1 {[%clk 0:02:29.2]} 15... Nd6 {[%clk
0:00:40.5]} 16. Qa3 {[%clk 0:02:26.1]} 16... c5 {[%clk 0:00:38.2]} 17. cxd5
{[%clk 0:02:22.6]} 17... exd5 {[%clk 0:00:36.3]} 18. dxc5 {[%clk 0:02:22.8]}
18... Ne4 {[%clk 0:00:36]} 19. Bd6 {[%clk 0:02:23]} 19... Nxd6 {[%clk
0:00:34.4]} 20. cxd6 {[%clk 0:02:23.9]} 20... Qf6 {[%clk 0:00:33.4]} 21. c4
{[%clk 0:02:19]} 21... dxc4 {[%clk 0:00:19.7]} 22. Bxc4 {[%clk 0:02:19.9]} 22...
Be4 {[%clk 0:00:20.2]} 23. Nd4 {[%clk 0:02:13.8]} 23... Ne5 {[%clk 0:00:20]} 24.
f3 {[%clk 0:01:57.6]} 24... Bc6 {[%clk 0:00:13.6]} 25. Nxc6 {[%clk 0:01:56.8]}
25... bxc6 {[%clk 0:00:12.8]} 26. Be2 {[%clk 0:01:56.2]} 26... Rfd8 {[%clk
0:00:12.3]} 27. Rd1 {[%clk 0:01:56.6]} 27... Ra7 {[%clk 0:00:10]} 28. Ra2 {[%clk
0:01:56.6]} 28... Rad7 {[%clk 0:00:09.7]} 29. Rad2 {[%clk 0:01:57.1]} 29... Kg7
{[%clk 0:00:06.4]} 30. Qc5 {[%clk 0:01:56.8]} 1-0

[Event "*** SCC Grand Prix: Titled Tuesday Blitz"]
[Site "Chess.com"]
[Date "2020.10.13"]
[Round "8"]
[White "glebus008"]
[Black "INLOVEWITHF"]
[Result "1-0"]
[WhiteElo "2329"]
[BlackElo "2512"]
[TimeControl "180+1"]
[EndTime "11:31:53 PDT"]
[Termination "glebus008 won by resignation"]

1. e4 {[%clk 0:03:00.9]} 1... e5 {[%clk 0:02:45.3]} 2. Nf3 {[%clk 0:03:00.3]}
2... Nc6 {[%clk 0:02:44.8]} 3. Nc3 {[%clk 0:03:00.5]} 3... Bc5 {[%clk
0:02:44.2]} 4. Nxe5 {[%clk 0:02:58.8]} 4... Nxe5 {[%clk 0:02:38.8]} 5. d4 {[%clk
0:02:58.5]} 5... Bd6 {[%clk 0:02:39.4]} 6. dxe5 {[%clk 0:02:54.9]} 6... Bxe5
{[%clk 0:02:39.4]} 7. Bd3 {[%clk 0:02:50.9]} 7... Nf6 {[%clk 0:02:38.3]} 8. O-O
{[%clk 0:02:47.4]} 8... O-O {[%clk 0:02:37.9]} 9. Be3 {[%clk 0:02:33.8]} 9...
Bxc3 {[%clk 0:02:34.5]} 10. bxc3 {[%clk 0:02:33.1]} 10... d5 {[%clk 0:02:35.4]}
11. exd5 {[%clk 0:02:23]} 11... Qxd5 {[%clk 0:02:34]} 12. Bd4 {[%clk 0:02:19.2]}
12... Qg5 {[%clk 0:02:31.2]} 13. Qf3 {[%clk 0:02:07.4]} 13... c5 {[%clk
0:02:27]} 14. Bxf6 {[%clk 0:02:06]} 14... Qxf6 {[%clk 0:02:27.9]} 15. Qxf6
{[%clk 0:02:05.6]} 15... gxf6 {[%clk 0:02:28.8]} 16. Rfe1 {[%clk 0:02:04.8]}
16... Be6 {[%clk 0:02:27.1]} 17. Be4 {[%clk 0:01:51.7]} 17... Rad8 {[%clk
0:02:24.3]} 18. Bxb7 {[%clk 0:01:48.4]} 18... Rd2 {[%clk 0:02:23.9]} 19. Be4
{[%clk 0:01:47.2]} 19... f5 {[%clk 0:02:23.2]} 20. Bd3 {[%clk 0:01:40.2]} 20...
c4 {[%clk 0:02:23.5]} 21. Re2 {[%clk 0:01:36.7]} 21... Rxe2 {[%clk 0:02:20.2]}
22. Bxe2 {[%clk 0:01:37.6]} 22... Rb8 {[%clk 0:02:17.7]} 23. h4 {[%clk
0:01:31.7]} 23... Rb2 {[%clk 0:02:17.4]} 24. Bd1 {[%clk 0:01:31.6]} 24... Bd5
{[%clk 0:02:16.1]} 25. f3 {[%clk 0:01:25.7]} 25... f4 {[%clk 0:02:15.4]} 26. Kf2
{[%clk 0:01:18.8]} 26... Be6 {[%clk 0:02:15.7]} 27. Ke1 {[%clk 0:01:17]} 27...
Bf5 {[%clk 0:02:12.3]} 28. Kd2 {[%clk 0:01:16.9]} 28... a5 {[%clk 0:02:11]} 29.
a3 {[%clk 0:01:14.4]} 29... Rb6 {[%clk 0:02:09.1]} 30. Be2 {[%clk 0:01:08.9]}
30... Rd6+ {[%clk 0:02:08]} 31. Kc1 {[%clk 0:01:08.6]} 31... Rh6 {[%clk
0:02:05.6]} 32. Rb1 {[%clk 0:01:03.2]} 32... Rxh4 {[%clk 0:02:00.5]} 33. Rb5
{[%clk 0:01:02.1]} 33... Be6 {[%clk 0:01:53.5]} 34. Rxa5 {[%clk 0:01:01.6]}
34... Rh2 {[%clk 0:01:53.5]} 35. Rg5+ {[%clk 0:00:54.1]} 35... Kf8 {[%clk
0:01:53.3]} 36. a4 {[%clk 0:00:54.3]} 36... h6 {[%clk 0:01:53.2]} 37. Rc5 {[%clk
0:00:51.2]} 37... Rxg2 {[%clk 0:01:52.7]} 38. Bxc4 {[%clk 0:00:51.3]} 38... Bf5
{[%clk 0:01:40.1]} 39. Rxf5 {[%clk 0:00:46.5]} 1-0

[Event "*** SCC Grand Prix: Titled Tuesday Blitz"]
[Site "Chess.com"]
[Date "2020.10.13"]
[Round "8"]
[White "KuzubovYuriy"]
[Black "LiamVrolijk"]
[Result "1-0"]
[WhiteElo "2903"]
[BlackElo "2846"]
[TimeControl "180+1"]
[EndTime "11:31:58 PDT"]
[Termination "KuzubovYuriy won by resignation"]

1. d4 {[%clk 0:03:00.9]} 1... Nf6 {[%clk 0:03:00]} 2. Nf3 {[%clk 0:02:59.8]}
2... d5 {[%clk 0:03:00.3]} 3. c4 {[%clk 0:02:59.9]} 3... e6 {[%clk 0:03:00.7]}
4. g3 {[%clk 0:02:58.3]} 4... Be7 {[%clk 0:03:00.7]} 5. Bg2 {[%clk 0:02:58.6]}
5... O-O {[%clk 0:03:00.4]} 6. O-O {[%clk 0:02:59.3]} 6... dxc4 {[%clk 0:03:01]}
7. Qc2 {[%clk 0:02:59.7]} 7... a6 {[%clk 0:03:01.2]} 8. a4 {[%clk 0:02:59.5]}
8... Bd7 {[%clk 0:03:01.3]} 9. Qxc4 {[%clk 0:02:59.5]} 9... Bc6 {[%clk
0:03:02.1]} 10. Bg5 {[%clk 0:02:59.7]} 10... Nbd7 {[%clk 0:03:02.4]} 11. Nc3
{[%clk 0:02:57.5]} 11... h6 {[%clk 0:03:02.7]} 12. Bf4 {[%clk 0:02:45.3]} 12...
Bd6 {[%clk 0:03:00.9]} 13. a5 {[%clk 0:02:38.6]} 13... Bxf4 {[%clk 0:02:49.4]}
14. gxf4 {[%clk 0:02:38.5]} 14... Bd5 {[%clk 0:02:47.2]} 15. Nxd5 {[%clk
0:02:23.1]} 15... exd5 {[%clk 0:02:48.1]} 16. Qc2 {[%clk 0:02:17.4]} 16... Rc8
{[%clk 0:02:42.8]} 17. Ne5 {[%clk 0:02:13.9]} 17... c6 {[%clk 0:02:42.4]} 18.
Bh3 {[%clk 0:02:05.8]} 18... Qe7 {[%clk 0:02:37.2]} 19. Kh1 {[%clk 0:02:02.9]}
19... Rcd8 {[%clk 0:02:29.8]} 20. e3 {[%clk 0:01:52.8]} 20... Rfe8 {[%clk
0:02:29.3]} 21. Rg1 {[%clk 0:01:51.5]} 21... Nf8 {[%clk 0:02:27.9]} 22. Rg2
{[%clk 0:01:48.2]} 22... Kh8 {[%clk 0:02:08.1]} 23. Bf5 {[%clk 0:01:35]} 23...
g6 {[%clk 0:01:51.5]} 24. Rag1 {[%clk 0:01:03.6]} 24... Rd6 {[%clk 0:01:50.9]}
25. Bxg6 {[%clk 0:00:49.5]} 25... fxg6 {[%clk 0:01:40.6]} 26. Rxg6 {[%clk
0:00:49.6]} 26... Ne4 {[%clk 0:01:33.7]} 27. Rg8+ {[%clk 0:00:45.3]} 27... Kh7
{[%clk 0:01:33.3]} 28. f3 {[%clk 0:00:44.8]} 28... Ng6 {[%clk 0:01:18.5]} 29.
R8xg6 {[%clk 0:00:40.3]} 29... Rxg6 {[%clk 0:01:14]} 30. Nxg6 {[%clk 0:00:40.2]}
1-0